fUST/lending_fUST_20250411
["ID","MTS","AMOUNT","RATE_DAILY","PERIOD"]
[357710759,1744374647662,-416.446,0.00023002,2]
[357710760,1744374647671,-269.603,0.00023002,2]
[357710761,1744374647681,-500.0,0.00023076,2]
[357710762,1744374647691,-500.0,0.00023076,2]
[357710763,1744374647701,-155.873899,0.00023079,7]
[357710764,1744374647711,-151.0,0.00023079,7]
[357710765,1744374647721,-404.868369,0.00023079,7]
[357710766,1744374647730,-404.868369,0.00023079,7]
[357710767,1744374647740,-154.016992,0.00023079,7]
[357710768,1744374647749,-151.0,0.00023079,7]
[357710769,1744374647759,-151.0,0.00023079,7]
[357710770,1744374647769,-151.0,0.00023079,7]
[357710771,1744374647779,-151.401455,0.00023079,7]
[357710772,1744374647790,-153.834923,0.00023079,7]
[357710773,1744374647800,-151.0,0.00023079,7]
[357710774,1744374647810,-388.390564,0.00023079,7]
[357710775,1744374647820,-388.390564,0.00023079,7]
[357710776,1744374647830,-388.390564,0.00023079,7]
[357710777,1744374647840,-388.390564,0.00023079,7]
[357710778,1744374647849,-151.0,0.00023079,7]
[357710779,1744374647859,-151.0,0.00023079,7]
[357710780,1744374647869,-151.0,0.00023079,7]
[357710781,1744374647879,-151.0,0.00023079,7]
[357710782,1744374647889,-151.0,0.00023079,7]
[357710783,1744374647898,-151.0,0.00023079,7]
[357710784,1744374647908,-151.0,0.00023079,7]
[357710785,1744374647918,-151.0,0.00023079,7]
[357710786,1744374647927,-151.0,0.00023079,7]
[357710787,1744374647937,-314.008992,0.00023079,7]
[357710788,1744374647947,-314.008992,0.00023079,7]
[357710789,1744374647957,-314.008992,0.00023079,7]
[357710790,1744374647966,-314.008992,0.00023079,7]
[357710791,1744374647976,-1650.992263,0.00023079,2]
[357710792,1744374647986,-1650.992263,0.00023079,2]
[357710793,1744374647996,-1650.992263,0.00023079,2]
[357710794,1744374648006,-1650.992263,0.00023079,2]
[357710795,1744374648015,-158.173726,0.00023079,7]
[357710796,1744374648025,-158.173726,0.00023079,7]
[357710797,1744374648037,-158.173726,0.00023079,7]
[357710798,1744374648047,-158.173726,0.00023079,7]
[357710799,1744374648058,-151.0,0.00023079,7]
[357710800,1744374648069,-404.947641,0.00023079,7]
[357710801,1744374648084,-404.947641,0.00023079,7]
[357710802,1744374648094,-207.113204,0.00023079,7]
[357710803,1744374648104,-207.113204,0.00023079,7]
[357710804,1744374648114,-207.113204,0.00023079,7]
[357710805,1744374648126,-207.113204,0.00023079,7]
[357710806,1744374648136,-1651.208428,0.00023079,7]
[357710807,1744374648147,-1651.208428,0.00023079,7]
[357710808,1744374648157,-1651.208428,0.00023079,7]
[357710809,1744374648167,-1651.208428,0.00023079,7]
[357710810,1744374648176,-1651.208428,0.00023079,7]
[357710811,1744374648188,-1651.208428,0.00023079,7]
[357710812,1744374648198,-179.652632,0.00023079,7]
[357710813,1744374648208,-179.652632,0.00023079,7]
[357710814,1744374648219,-179.652632,0.00023079,7]
[357710815,1744374648229,-179.652632,0.00023079,7]
[357710816,1744374648239,-179.652632,0.00023079,7]
[357710817,1744374648249,-179.652632,0.00023079,7]
[357710818,1744374648260,-5796.42003914,0.0002308,2]
[357710819,1744374648271,-404.868369,0.00023111,7]
[357710820,1744374648281,-404.868369,0.00023111,7]
[357710821,1744374648291,-151.0,0.00023111,7]
[357710822,1744374648301,-500.0,0.00023111,2]
[357710823,1744374648311,-500.0,0.00023111,2]
[357710824,1744374648321,-500.0,0.00023111,2]
[357710825,1744374648331,-500.0,0.00023122,2]
[357710826,1744374648341,-419.71244257,0.00023128,2]
[357710827,1744374648351,-501.0,0.000232,2]
[357710828,1744374648361,-157.20191,0.000232,7]
[357710829,1744374648371,-600.088978,0.000232,7]
[357710830,1744374648382,-600.088978,0.000232,7]
[357710831,1744374648392,-151.0,0.000232,7]
[357710832,1744374648402,-151.0,0.00023221,7]
[357710833,1744374648416,-169.500948,0.00023221,7]
[357710834,1744374648427,-151.0,0.00023221,7]
[357710835,1744374648438,-240.215045,0.00023221,7]
[357710836,1744374648448,-314.008992,0.00023221,7]
[357710837,1744374648459,-314.008992,0.00023221,7]
[357710838,1744374648469,-1651.208428,0.00023221,7]
[357710839,1744374648479,-1651.208438,0.00023221,7]
[357710840,1744374648489,-179.652632,0.00023221,7]
[357710841,1744374648499,-179.652624,0.00023221,7]
[357710842,1744374648510,-404.868369,0.00023282,7]
[357710843,1744374648520,-404.868369,0.00023282,7]
[357710844,1744374648530,-388.390564,0.00023282,7]
[357710845,1744374648543,-388.390564,0.00023282,7]
[357710846,1744374648554,-1650.992263,0.00023282,2]
[357710847,1744374648564,-1650.992263,0.00023282,2]
[357710848,1744374648575,-158.173726,0.00023282,7]
[357710849,1744374648585,-158.173726,0.00023282,7]
[357710850,1744374648595,-404.947641,0.00023282,7]
[357710851,1744374648606,-404.947641,0.00023282,7]
[357710852,1744374648617,-207.113204,0.00023282,7]
[357710853,1744374648627,-207.113204,0.00023282,7]
[357710854,1744374648636,-151.0,0.00023375,7]
[357710855,1744374648646,-151.0,0.00023375,7]
[357710856,1744374648656,-152.956019,0.00023375,7]
[357710857,1744374648667,-156.612074,0.00023375,7]
[357710858,1744374648677,-151.0,0.00023375,7]
[357710859,1744374648688,-153.260875,0.00023375,7]
[357710860,1744374648698,-151.0,0.00023375,7]
[357710861,1744374648708,-151.0,0.00023375,7]
[357710862,1744374648718,-151.0,0.00023375,7]
[357710863,1744374648728,-151.0,0.00023375,7]
[357710864,1744374648738,-468.055421,0.00023375,7]
[357710865,1744374648748,-468.055421,0.00023375,7]
[357710866,1744374648757,-151.0,0.00023396,7]
[357710867,1744374648767,-151.0,0.00023396,7]
[357710868,1744374648777,-314.008992,0.00023396,7]
[357710869,1744374648789,-314.008992,0.00023396,7]
[357710870,1744374648799,-509.36407228,0.00023396,2]
[357710871,1744374648810,-160.0,0.00023401,2]
[357710872,1744374648820,-388.390564,0.00023437,7]
[357710873,1744374648830,-388.390564,0.00023437,7]
[357710874,1744374648840,-151.0,0.00023437,7]
[357710875,1744374648850,-151.0,0.00023437,7]
[357710876,1744374648860,-314.008992,0.00023437,7]
[357710877,1744374648870,-314.008992,0.00023437,7]
[357710878,1744374648880,-1650.992263,0.00023437,2]
[357710879,1744374648890,-1650.992263,0.00023437,2]
[357710880,1744374648900,-158.173726,0.00023437,7]
[357710881,1744374648911,-158.173726,0.00023437,7]
[357710882,1744374648921,-404.947641,0.00023437,7]
[357710883,1744374648931,-404.947641,0.00023437,7]
[357710884,1744374648942,-207.113204,0.00023437,7]
[357710885,1744374648953,-207.113204,0.00023437,7]
[357710886,1744374648964,-154.592872,0.00023447,7]
[357710887,1744374648975,-603.459947,0.00023447,7]
[357710888,1744374648986,-603.459947,0.00023447,7]
[357710889,1744374648997,-151.0,0.00023447,7]
[357710890,1744374649155,-151.0,0.00023447,7]
[357710891,1744374649167,-201.01350009,0.00023447,7]
[357710892,1744374649177,-404.868369,0.00023447,7]
[357710893,1744374649188,-404.868369,0.00023447,7]
[357710894,1744374649199,-154.773122,0.00023447,2]
[357710895,1744374649211,-154.773122,0.00023447,2]
[357710896,1744374649221,-151.0,0.00023447,7]
[357710897,1744374649231,-388.390564,0.00023447,7]
[357710898,1744374649242,-388.390564,0.00023447,7]
[357710899,1744374649252,-388.390564,0.00023447,7]
[357710900,1744374649263,-388.390564,0.00023447,7]
[357710901,1744374649275,-185.52834,0.00023447,7]
[357710902,1744374649286,-151.0,0.00023447,7]
[357710903,1744374649297,-314.008992,0.00023447,7]
[357710904,1744374649307,-314.008992,0.00023447,7]
[357710905,1744374649317,-1650.992263,0.00023447,2]
[357710906,1744374649328,-1650.992263,0.00023447,2]
[357710907,1744374649339,-1650.992263,0.00023447,2]
[357710908,1744374649350,-1650.992265,0.00023447,2]
[357710909,1744374649360,-158.173726,0.00023447,7]
[357710910,1744374649371,-158.173726,0.00023447,7]
[357710911,1744374649381,-158.173726,0.00023447,7]
[357710912,1744374649392,-158.173716,0.00023447,7]
[357710913,1744374649403,-404.947641,0.00023447,7]
[357710914,1744374649413,-404.947641,0.00023447,7]
[357710915,1744374649424,-404.947641,0.00023447,7]
[357710916,1744374649435,-404.94764234,0.00023447,7]
[357710917,1744374649446,-207.113204,0.00023447,7]
[357710918,1744374649457,-207.113199,0.00023447,7]
[357710919,1744374649468,-1002.41363337,0.00023451,2]
[357710920,1744374649479,-388.390564,0.00023451,7]
[357710921,1744374649490,-388.390564,0.00023451,7]
[357710922,1744374649501,-151.0,0.00023457,7]
[357710923,1744374649511,-600.088978,0.00023457,7]
[357710924,1744374649521,-600.088978,0.00023457,7]
[357710925,1744374649531,-151.0,0.00023457,7]
[357710926,1744374649543,-151.0,0.00023457,7]
[357710927,1744374649553,-404.868369,0.00023457,7]
[357710928,1744374649563,-404.868369,0.00023457,7]
[357710929,1744374649573,-155.302513,0.00023457,7]
[357710930,1744374649583,-185.048313,0.00023457,7]
[357710931,1744374649593,-468.055421,0.00023457,7]
[357710932,1744374649603,-468.055421,0.00023457,7]
[357710933,1744374649613,-151.0,0.00023457,7]
[357710934,1744374649622,-314.008992,0.00023457,7]
[357710935,1744374649632,-314.00898941,0.00023457,7]
[357710936,1744374649642,-388.390564,0.00023473,7]
[357710937,1744374649652,-388.390564,0.00023473,7]
[357710938,1744374649662,-158.502,0.00023572,4]
[357710939,1744374649673,-162.57255603,0.00023572,4]
[357710940,1744374649683,-420.0,0.00023583,2]
[357710941,1744374649694,-746.1116227,0.00023932,2]
[357710942,1744374649704,-404.868369,0.0002397,7]
[357710943,1744374649715,-404.868369,0.0002397,7]
[357710944,1744374649724,-600.0,0.0002399,2]
[357710945,1744374649734,-160.0,0.00024,7]
[357710946,1744374649744,-419.71244257,0.00024,7]
[357710947,1744374649754,-151.0,0.00024164,2]
[357710948,1744374649764,-600.0,0.0002424,2]
[357710949,1744374649774,-151.0,0.00024335,2]
[357710950,1744374649786,-5859.56,0.00024339,3]
[357710951,1744374649797,-8345.66,0.00024339,3]
[357710952,1744374649808,-4172.84,0.00024339,3]
[357710953,1744374649818,-2086.42,0.00024339,3]
[357710954,1744374649828,-1043.2,0.00024339,3]
[357710955,1744374649839,-521.6,0.00024339,3]
[357710956,1744374649850,-603.459947,0.0002449,7]
[357710957,1744374649860,-603.459947,0.0002449,7]
[357710958,1744374649870,-151.0,0.0002449,7]
[357710959,1744374649880,-151.0,0.0002449,7]
[357710960,1744374649891,-151.0,0.0002449,7]
[357710961,1744374649901,-404.868369,0.0002449,7]
[357710962,1744374649911,-404.868369,0.0002449,7]
[357710963,1744374649921,-404.868369,0.0002449,7]
[357710964,1744374649932,-404.868369,0.0002449,7]
[357710965,1744374649943,-154.773122,0.0002449,2]
[357710966,1744374649954,-154.773122,0.0002449,2]
[357710967,1744374649966,-388.390564,0.0002449,7]
[357710968,1744374649977,-388.390564,0.0002449,7]
[357710969,1744374649987,-600.0,0.0002449,2]
[357710970,1744374649998,-280.720102,0.00024499,7]
[357710971,1744374650008,-151.0,0.00024499,7]
[357710972,1744374650018,-151.0,0.00024499,7]
[357710973,1744374650028,-151.0,0.00024499,7]
[357710974,1744374650044,-218.173877,0.00024499,7]
[357710975,1744374650055,-151.0,0.00024499,7]
[357710976,1744374650067,-603.459947,0.00024499,7]
[357710977,1744374650085,-168.418809,0.00024499,7]
[357710978,1744374650102,-225.12124,0.00024499,7]
[357710979,1744374650113,-603.459947,0.00024499,7]
[357710980,1744374650125,-157.703023,0.00024499,7]
[357710981,1744374650136,-151.0,0.00024499,7]
[357710982,1744374650147,-151.0,0.00024499,7]
[357710983,1744374650160,-151.0,0.00024499,7]
[357710984,1744374650171,-151.0,0.00024499,7]
[357710985,1744374650183,-600.088978,0.00024499,7]
[357710986,1744374650193,-600.088978,0.00024499,7]
[357710987,1744374650204,-151.0,0.00024499,7]
[357710988,1744374650215,-186.887474,0.00024499,7]
[357710989,1744374650226,-404.868369,0.00024499,7]
[357710990,1744374650237,-404.868367,0.00024499,7]
[357710991,1744374650248,-154.773122,0.00024499,2]
[357710992,1744374650259,-154.773122,0.00024499,2]
[357710993,1744374650270,-468.055421,0.00024499,7]
[357710994,1744374650282,-468.055421,0.00024499,7]
[357710995,1744374650298,-214.734284,0.00024563,7]
[357710996,1744374650309,-151.0,0.00024573,7]
[357710997,1744374650321,-211.95948,0.00024573,7]
[357710998,1744374650332,-151.0,0.00024573,7]
[357710999,1744374650343,-468.055421,0.00024573,7]
[357711000,1744374650354,-468.055421,0.00024573,7]
[357711001,1744374650367,-151.381434,0.00024598,7]
[357711002,1744374650379,-151.0,0.00024599,7]
[357711003,1744374650390,-151.0,0.00024599,7]
[357711004,1744374650401,-158.961269,0.00024599,7]
[357711005,1744374650412,-603.459947,0.00024599,7]
[357711006,1744374650424,-603.459947,0.00024599,7]
[357711007,1744374650435,-156.014122,0.00024599,7]
[357711008,1744374650446,-151.0,0.00024599,7]
[357711009,1744374650457,-600.088978,0.00024599,7]
[357711010,1744374650468,-600.088978,0.00024599,7]
[357711011,1744374650479,-151.0,0.00024599,7]
[357711012,1744374650489,-154.773122,0.00024599,2]
[357711013,1744374650499,-154.773122,0.00024599,2]
[357711014,1744374650508,-468.055421,0.00024599,7]
[357711015,1744374650518,-468.055421,0.00024599,7]
[357711016,1744374650528,-151.0,0.000246,10]
[357711017,1744374650542,-151.0,0.000246,5]
[357711018,1744374650552,-151.0,0.00024658,7]
[357711019,1744374650562,-151.0,0.00024658,7]
[357711020,1744374650572,-151.0,0.00024658,7]
[357711021,1744374650583,-151.0,0.00024658,7]
[357711022,1744374650592,-151.0,0.00024658,7]
[357711023,1744374650603,-380.0,0.00024658,2]
[357711024,1744374650614,-600.088978,0.00024658,7]
[357711025,1744374650624,-600.088978,0.00024658,7]
[357711026,1744374650635,-183.56220807,0.00024672,2]
[357711027,1744374650646,-500.0,0.00024673,2]
[357711028,1744374650656,-501.22166499,0.00024673,2]
[357711029,1744374650667,-500.0,0.00024673,2]
[357711030,1744374650678,-470.67271372,0.00024673,2]
[357711031,1744374650688,-500.0,0.00024673,2]
[357711032,1744374650699,-500.0,0.00024673,2]
[357711033,1744374650710,-504.25308154,0.00024673,2]
[357711034,1744374650720,-500.0,0.00024673,2]
[357711035,1744374650730,-500.0,0.00024673,2]
[357711036,1744374650741,-500.0,0.00024673,2]
[357711037,1744374650751,-500.0,0.00024673,2]
[357711038,1744374650762,-500.0,0.00024673,2]
[357711039,1744374650773,-500.0,0.00024673,2]
[357711040,1744374650787,-500.0,0.00024673,2]
[357711041,1744374650798,-500.0,0.00024673,2]
[357711042,1744374650808,-500.0,0.00024673,2]
[357711043,1744374650818,-500.0,0.00024673,2]
[357711044,1744374650829,-500.0,0.00024673,2]
[357711045,1744374650839,-500.0,0.00024673,2]
[357711046,1744374650849,-500.0,0.00024673,2]
[357711047,1744374650859,-500.0,0.00024673,2]
[357711048,1744374650868,-594.40789668,0.00024673,2]
[357711049,1744374650878,-500.0,0.00024673,2]
[357711050,1744374650889,-472.9982817,0.00024673,2]
[357711051,1744374650898,-631.083079,0.00024673,2]
[357711052,1744374650908,-500.0,0.00024673,2]
[357711053,1744374650918,-500.0,0.00024673,2]
[357711054,1744374650928,-500.0,0.00024673,2]
[357711055,1744374650938,-500.0,0.00024673,2]
[357711056,1744374650948,-500.0,0.00024673,2]
[357711057,1744374650958,-500.0,0.00024673,2]
[357711058,1744374650969,-500.58778857,0.00024673,2]
[357711059,1744374650979,-500.0,0.00024673,2]
[357711060,1744374650989,-500.0,0.00024673,2]
[357711061,1744374650999,-500.0,0.00024673,2]
[357711062,1744374651010,-500.0,0.00024673,2]
[357711063,1744374651020,-500.0,0.00024673,2]
[357711064,1744374651030,-500.0,0.00024673,2]
[357711065,1744374651042,-283.69765538,0.00024673,2]
[357711066,1744374651052,-501.83244286,0.00024673,2]
[357711067,1744374651063,-500.0,0.00024673,2]
[357711068,1744374651076,-395.44806136,0.00024673,2]
[357711069,1744374651087,-500.0,0.00024673,2]
[357711070,1744374651097,-500.0,0.00024673,2]
[357711071,1744374651108,-502.09223175,0.00024673,2]
[357711072,1744374651119,-500.48200018,0.00024673,2]
[357711073,1744374651128,-500.0,0.00024673,2]
[357711074,1744374651137,-500.0,0.00024673,2]
[357711075,1744374651147,-151.679064,0.00024673,7]
[357711076,1744374651157,-151.0,0.00024673,7]
[357711077,1744374651167,-151.0,0.00024673,7]
[357711078,1744374651176,-603.459947,0.00024673,7]
[357711079,1744374651186,-603.459947,0.00024673,7]
[357711080,1744374651195,-151.0,0.00024673,7]
[357711081,1744374651204,-151.0,0.00024673,7]
[357711082,1744374651213,-154.773122,0.00024673,2]
[357711083,1744374651222,-154.773122,0.00024673,2]
[357711084,1744374651231,-468.055421,0.00024673,7]
[357711085,1744374651240,-468.055421,0.00024673,7]
[357711086,1744374651250,-603.459947,0.00024679,7]
[357711087,1744374651259,-603.459947,0.00024679,7]
[357711088,1744374651270,-281.162118,0.00024679,7]
[357711089,1744374651280,-600.088978,0.00024679,7]
[357711090,1744374651293,-600.088978,0.00024679,7]
[357711091,1744374651303,-151.0,0.00024679,7]
[357711092,1744374651312,-151.0,0.00024679,7]
[357711093,1744374651323,-151.0,0.00024679,7]
[357711094,1744374651333,-154.773122,0.00024679,2]
[357711095,1744374651341,-154.773122,0.00024679,2]
[357711096,1744374651348,-468.055421,0.00024679,7]
[357711097,1744374651358,-468.055421,0.00024679,7]
[357711098,1744374651367,-468.055421,0.00024679,7]
[357711099,1744374651375,-468.055421,0.00024679,7]
[357711100,1744374651384,-468.055421,0.00024679,7]
[357711101,1744374651392,-468.055412,0.00024679,7]
[357711102,1744374651401,-160.0,0.00024679,7]
[357711103,1744374651411,-419.71244257,0.00024679,7]
[357711104,1744374651422,-151.0,0.00024688,7]
[357711105,1744374651432,-151.0,0.00024688,7]
[357711106,1744374651442,-151.0,0.00024689,7]
[357711107,1744374651453,-151.0,0.00024689,7]
[357711108,1744374651462,-151.0,0.00024689,7]
[357711109,1744374651473,-151.0,0.00024689,7]
[357711110,1744374651483,-603.459947,0.00024689,7]
[357711111,1744374651494,-603.459947,0.00024689,7]
[357711112,1744374651504,-600.088978,0.00024689,7]
[357711113,1744374651515,-600.088978,0.00024689,7]
[357711114,1744374651525,-154.773122,0.00024689,2]
[357711115,1744374651537,-154.773122,0.00024689,2]
[357711116,1744374651546,-154458.49234001,0.00024699,2]
[357711117,1744374651557,-151.0,0.00024699,7]
[357711118,1744374651567,-151.0,0.00024699,7]
[357711119,1744374651577,-151.0,0.00024699,7]
[357711120,1744374651588,-267.992469,0.00024699,7]
[357711121,1744374651599,-603.459947,0.00024699,7]
[357711122,1744374651609,-603.459947,0.00024699,7]
[357711123,1744374651620,-600.088978,0.00024699,7]
[357711124,1744374651630,-600.088978,0.00024699,7]
[357711125,1744374651641,-154.773122,0.00024699,2]
[357711126,1744374651651,-154.773122,0.00024699,2]
[357711127,1744374651661,-151.0,0.000247,10]
[357711128,1744374651671,-151.0,0.000247,8]
[357711129,1744374651682,-151.0,0.000247,6]
[357711130,1744374651692,-250.0,0.000247,2]
[357711131,1744374651703,-151.0,0.000247,8]
[357711132,1744374651713,-151.0,0.000247,9]
[357711133,1744374651723,-600.0,0.0002474,2]
[357711134,1744374651733,-151.0,0.000248,7]
[357711135,1744374651742,-183.081655,0.000248,7]
[357711136,1744374651752,-151.0,0.000248,7]
[357711137,1744374651762,-151.0,0.000248,10]
[357711138,1744374651772,-151.0,0.000248,5]
[357711139,1744374651782,-151.0,0.000248,8]
[357711140,1744374651793,-151.0,0.000248,8]
[357711141,1744374651803,-151.0,0.000248,5]
[357711142,1744374651813,-151.0,0.000248,9]
[357711143,1744374651824,-151.0,0.000248,10]
[357711144,1744374651833,-72083.9123635,0.000248,2]
[357711145,1744374651843,-603.459947,0.00024861,7]
[357711146,1744374651853,-603.459939,0.00024861,7]
[357711147,1744374651863,-154.773122,0.00024861,2]
[357711148,1744374651874,-154.773129,0.00024861,2]
[357711149,1744374651884,-500.0,0.00024873,2]
[357711150,1744374651894,-500.0,0.00024873,2]
[357711151,1744374651904,-500.0,0.00024873,2]
[357711152,1744374651914,-512.21781974,0.00024873,2]
[357711153,1744374651924,-500.0,0.00024873,2]
[357711154,1744374651933,-500.0,0.00024873,2]
[357711155,1744374651944,-500.0,0.00024873,2]
[357711156,1744374651954,-260.15691118,0.00024873,2]
[357711157,1744374651965,-500.0,0.00024873,2]
[357711158,1744374651975,-500.0,0.00024873,2]
[357711159,1744374651984,-500.0,0.00024873,2]
[357711160,1744374652139,-500.0,0.00024873,2]
[357711161,1744374652150,-501.43159606,0.00024873,2]
[357711162,1744374652161,-500.0,0.00024873,2]
[357711163,1744374652171,-500.0,0.00024873,2]
[357711164,1744374652180,-500.0,0.00024873,2]
[357711165,1744374652191,-500.0,0.00024873,2]
[357711166,1744374652202,-151.0,0.00024873,7]
[357711167,1744374652213,-151.0,0.00024873,7]
[357711168,1744374652224,-151.0,0.00024873,7]
[357711169,1744374652235,-151.0,0.00024873,7]
[357711170,1744374652246,-151.0,0.00024873,7]
[357711171,1744374652256,-151.0,0.00024873,7]
[357711172,1744374652266,-151.0,0.00024873,7]
[357711173,1744374652277,-600.088978,0.00024873,7]
[357711174,1744374652291,-600.088978,0.00024873,7]
[357711175,1744374652302,-600.088978,0.00024873,7]
[357711176,1744374652312,-600.088973,0.00024873,7]
[357711177,1744374652322,-151.0,0.0002489,7]
[357711178,1744374652333,-177.35194671,0.0002489,2]
[357711179,1744374652343,-156.49085179,0.000249,2]
[357711180,1744374652353,-151.0,0.000249,10]
[357711181,1744374652363,-151.0,0.000249,7]
[357711182,1744374652375,-151.0,0.000249,5]
[357711183,1744374652385,-151.0,0.000249,7]
[357711184,1744374652395,-150.72587805,0.00024973,2]
[357711185,1744374652405,-151.37960369,0.00024973,2]
[357711186,1744374652415,-18020.9780909,0.0002499,2]
[357711187,1744374652427,-635.31249361,0.0002499,2]
[357711188,1744374652438,-100699.41577697,0.00025,10]
[357711189,1744374652448,-1000.97565201,0.00025,5]
[357711190,1744374652458,-1979.0,0.00025,2]
[357711191,1744374652468,-2028.11383,0.00025,21]
[357711192,1744374652478,-27064.04055544,0.00025,7]
[357711193,1744374652488,-1054.28702937,0.00025,2]
[357711194,1744374652499,-206.04301459,0.00025,2]
[357711195,1744374652508,-838.60962551,0.00025,2]
[357711196,1744374652518,-155.09222302,0.00025,2]
[357711197,1744374652527,-172.0,0.00025,2]
[357711198,1744374652542,-2596.84549972,0.00025,2]
[357711199,1744374652552,-10364.0,0.00025,2]
[357711200,1744374652563,-1095.0,0.00025,2]
[357711201,1744374652575,-7167.0,0.00025,2]
[357711202,1744374652586,-201.636276,0.00025,2]
[357711203,1744374652597,-419.71244257,0.00025,10]
[357711204,1744374652608,-160.0,0.00025,10]
[357711205,1744374652618,-151.0,0.00025373,2]
[357711206,1744374652629,-598.0746201,0.00025425,2]
[357711207,1744374652639,-564.6420217,0.00025425,2]
[357711208,1744374652648,-564.6420217,0.00025425,2]
[357711209,1744374652658,-213.4946232,0.00025425,2]
[357711210,1744374652668,-564.6420217,0.00025425,2]
[357711211,1744374652677,-213.4946232,0.00025425,2]
[357711212,1744374652687,-564.6420217,0.00025425,2]
[357711213,1744374652698,-213.4946232,0.00025425,2]
[357711214,1744374652708,-900.0,0.00025469,3]
[357711215,1744374652718,-1000.0,0.000255,2]
[357711216,1744374652728,-587.0,0.00025634,2]
[357711217,1744374652739,-151.0,0.00025704,2]
[357711218,1744374652749,-516.68126135,0.00026,2]
[357711219,1744374652759,-19900.0,0.00026,2]
[357711220,1744374652768,-2100.0,0.00026108,2]
[357711221,1744374652778,-250.0,0.000262,7]
[357711222,1744374652791,-154.849752,0.00026247,2]
[357711223,1744374652803,-213.4946232,0.00026247,2]
[357711224,1744374652813,-213.4946232,0.00026247,2]
[357711225,1744374652823,-564.6420217,0.00026247,2]
[357711226,1744374652832,-426.6025335,0.00026247,2]
[357711227,1744374652842,-564.6420217,0.00026247,2]
[357711228,1744374652852,-564.6420217,0.00026247,2]
[357711229,1744374652862,-254.3022204,0.00026247,2]
[357711230,1744374652872,-564.6420217,0.00026247,2]
[357711231,1744374652881,-213.4946232,0.00026247,2]
[357711232,1744374652891,-213.4946232,0.00026247,2]
[357711233,1744374652901,-156.7645321,0.00026247,2]
[357711234,1744374652910,-564.6420217,0.00026247,2]
[357711235,1744374652920,-156.7645321,0.00026247,2]
[357711236,1744374652930,-213.4946232,0.00026247,2]
[357711237,1744374652940,-156.7645321,0.00026247,2]
[357711238,1744374652949,-156.7645321,0.00026247,2]
[357711239,1744374652959,-316.1159445,0.00026247,2]
[357711240,1744374652969,-213.4946232,0.00026247,2]
[357711241,1744374652978,-156.7645321,0.00026247,2]
[357711242,1744374652988,-156.7645321,0.00026247,2]
[357711243,1744374652998,-156.7645321,0.00026247,2]
[357711244,1744374653008,-156.7645321,0.00026247,2]
[357711245,1744374653018,-156.6048481,0.00026247,2]
[357711246,1744374653028,-244.87,0.000266,31]
[357711247,1744374653039,-244.87,0.000266,31]
[357711248,1744374653049,-244.87,0.000266,31]
[357711249,1744374653060,-244.87,0.000266,31]
[357711250,1744374653071,-244.87,0.000266,31]
[357711251,1744374653082,-244.87,0.000266,31]
[357711252,1744374653092,-244.87,0.000266,31]
[357711253,1744374653102,-244.87,0.000266,31]
[357711254,1744374653114,-244.87,0.000266,31]
[357711255,1744374653124,-244.87,0.000266,31]
[357711256,1744374653134,-244.87,0.000266,31]
[357711257,1744374653144,-244.87,0.000266,31]
[357711258,1744374653154,-338.99732798,0.00027,2]